fUST/lending_fUST_20240210
["ID","MTS","AMOUNT","RATE_DAILY","PERIOD"]
[313629311,1707495037907,-154.9690062,0.00022147,4]
[313629312,1707495037917,-232.52505957,0.00022147,2]
[313629313,1707495037926,-1098.5979348,0.00022148,2]
[313629314,1707495037935,-734.78029439,0.00022149,2]
[313629315,1707495037946,-1997.19860237,0.00022155,2]
[313629316,1707495037955,-561.19003544,0.0002219,5]
[313629317,1707495037965,-290.6671219,0.00022545,2]
[313629318,1707495037977,-2131.95577582,0.00023243,2]
[313629319,1707495037991,-4278.85878299,0.00023243,2]
[313629320,1707495038005,-1352.77872756,0.00023243,2]
[313629323,1707495041016,-339.64638281,0.00023243,2]
[313629324,1707495041028,-4488.61580402,0.00023243,2]
[313629325,1707495041038,-4938.65127661,0.00023243,2]
[313629361,1707495045860,-347.61871166,0.00023243,2]
[313629362,1707495045917,-6068.9999911,0.00023243,2]
[313629431,1707495673712,612.0,0.00029,30]
[313629495,1707496241454,-408.21127466,0.00021084,2]
[313629497,1707496241463,-154.95351395,0.00021084,4]
[313629499,1707496241472,-232.52505957,0.00021085,2]
[313629501,1707496241483,-572.36952403,0.00021086,2]
[313629503,1707496241492,-193.77808127,0.00021143,2]
[313629504,1707496241501,-326.56038554,0.00022,2]
[313629507,1707496241510,-427.41735822,0.00023239,2]
[313629523,1707496241619,-295.73444606,0.00023241,2]
[313629524,1707496241628,-180.97401251,0.00023241,2]
[313629526,1707496241637,-309.84508056,0.00023241,2]
[313629528,1707496241646,-1497.16272692,0.00023241,2]
[313629529,1707496241658,-2812.55490246,0.00023241,2]
[313629531,1707496241667,-1859.71951506,0.00023241,2]
[313629533,1707496241676,-155.03254382,0.00023241,2]
[313629535,1707496241685,-2110.54162964,0.00023242,2]
[313629536,1707496241694,-12017.91981382,0.00023243,2]
[313629538,1707496241704,-5000.0,0.00023243,2]
[313629540,1707496241712,-26827.3415952,0.00023243,2]
[313629581,1707496244035,-1385.83192117,0.00023243,2]
[313629582,1707496244092,-358.13169284,0.00023243,2]
[313629597,1707496246046,-965.82187276,0.00023243,2]
[313629598,1707496246055,-2088.95457831,0.00023243,2]
[313629599,1707496246066,-415.71746682,0.00023243,2]
[313629626,1707497267802,-1000.0,0.00025,25]
[313629627,1707497283543,-1000.0,0.00026,26]
[313629628,1707497306019,-1000.0,0.00027,27]
[313629631,1707497352377,-1261.34913906,0.00023243,5]
[313629632,1707497352404,-200.0,0.00023617,7]
[313629687,1707497438330,-232.52505957,0.00021098,2]
[313629688,1707497438340,-154.93802479,0.00021099,4]
[313629689,1707497438350,-150.0,0.00021143,2]
[313629690,1707497438359,-50000.0,0.00022493,2]
[313629691,1707497438368,-5271.05457494,0.00023243,2]
[313629692,1707497438378,-2149.37059568,0.00023243,2]
[313629693,1707497438389,-1242.48145049,0.00023243,2]
[313629694,1707497438399,-2215.28453115,0.00023243,2]
[313629695,1707497438410,-1832.17488523,0.00023617,2]
[313629696,1707497438522,-2212.60402565,0.00023617,2]
[313629697,1707497438534,-300.0,0.00023617,2]
[313629698,1707497438543,-2091.43243292,0.00023617,2]
[313629699,1707497438553,-620.00332559,0.00024316,2]
[313629700,1707497438564,-500.24501978,0.0002447,5]
[313629701,1707497438573,-10935.52,0.0002447,3]
[313629702,1707497438582,-13122.63,0.0002448,3]
[313629703,1707497438592,-15747.15,0.0002449,3]
[313629704,1707497438602,-153.7073365,0.000245,2]
[313629705,1707497438611,-288.8575524,0.000245,2]
[313629706,1707497438621,-306.0,0.000245,2]
[313629707,1707497438631,-8466.12,0.00024645,3]
[313629708,1707497438640,-1070.08339457,0.00024653,2]
[313629709,1707497438650,-1317.58620687,0.00024653,2]
[313629710,1707497438659,-331.64510858,0.00024653,2]
[313629711,1707497438668,-425.68491786,0.00024653,2]
[313629712,1707497438678,-684.29741414,0.00024654,2]
[313629713,1707497438687,-774.62215566,0.00024654,2]
[313629714,1707497438698,-194.94000655,0.00024655,5]
[313629715,1707497438707,-3388.05161586,0.00024655,2]
[313629716,1707497438716,-1000.0,0.00024655,3]
[313629717,1707497438726,-10069.06158505,0.00024655,2]
[313629718,1707497438735,-278.56211482,0.00024655,7]
[313629719,1707497438744,-641.66112806,0.00024655,2]
[313629720,1707497438755,-192.18417057,0.00024655,2]
[313629721,1707497438764,-10316.20148278,0.00024655,2]
[313629722,1707497438773,-155.49659606,0.00024655,2]
[313629723,1707497438783,-166.19000376,0.00024655,2]
[313629724,1707497438792,-546.45794103,0.00024657,2]
[313629725,1707497438801,-474.55420342,0.00024657,2]
[313629726,1707497438811,-500.0,0.00024657,2]
[313629727,1707497438820,-500.0,0.00024657,2]
[313629728,1707497438829,-500.0,0.00024657,2]
[313629729,1707497438839,-500.0,0.00024657,2]
[313629730,1707497438849,-500.0,0.00024657,2]
[313629731,1707497438858,-500.0,0.00024657,2]
[313629732,1707497438867,-500.0,0.00024657,2]
[313629733,1707497438876,-500.0,0.00024657,2]
[313629734,1707497438886,-500.0,0.00024657,2]
[313629735,1707497438895,-500.0,0.00024657,2]
[313629736,1707497438904,-500.0,0.00024657,2]
[313629737,1707497438913,-500.0,0.00024657,2]
[313629738,1707497438923,-500.0,0.00024657,2]
[313629739,1707497438932,-500.0,0.00024657,2]
[313629740,1707497438942,-546.86262069,0.00024657,2]
[313629741,1707497438951,-500.0,0.00024657,2]
[313629742,1707497438960,-500.0,0.00024657,2]
[313629743,1707497438970,-500.0,0.00024657,2]
[313629744,1707497438980,-500.0,0.00024657,2]
[313629745,1707497438989,-796.78,0.00024657,2]
[313629746,1707497438999,-796.78,0.00024657,2]
[313629747,1707497439008,-796.78,0.00024657,2]
[313629748,1707497439017,-796.78,0.00024657,2]
[313629749,1707497439027,-796.78,0.00024657,2]
[313629750,1707497439036,-796.78,0.00024657,2]
[313629751,1707497439045,-796.78,0.00024657,2]
[313629752,1707497439054,-796.78,0.00024657,2]
[313629753,1707497439064,-796.78,0.00024657,2]
[313629754,1707497439073,-796.78,0.00024657,2]
[313629755,1707497439083,-796.78,0.00024657,2]
[313629756,1707497439092,-796.78,0.00024657,2]
[313629757,1707497439101,-796.78,0.00024657,2]
[313629758,1707497439110,-796.78,0.00024657,2]
[313629759,1707497439119,-796.78,0.00024657,2]
[313629760,1707497439128,-796.78,0.00024657,2]
[313629761,1707497439138,-796.78,0.00024657,2]
[313629762,1707497439147,-796.78,0.00024657,2]
[313629763,1707497439158,-796.78,0.00024657,2]
[313629764,1707497439167,-796.78,0.00024657,2]
[313629765,1707497439177,-796.78,0.00024657,2]
[313629766,1707497439186,-796.78,0.00024657,2]
[313629767,1707497439197,-796.78,0.00024657,2]
[313629768,1707497439206,-796.96553846,0.00024657,2]
[313629769,1707497439216,-1219.9,0.00024657,2]
[313629770,1707497439225,-1219.9,0.00024657,2]
[313629771,1707497439236,-1219.9,0.00024657,2]
[313629772,1707497439246,-1219.9,0.00024657,2]
[313629773,1707497439258,-962.58,0.00024657,2]
[313629774,1707497439268,-962.58,0.00024657,2]
[313629775,1707497439277,-962.58,0.00024657,2]
[313629776,1707497439287,-962.58,0.00024657,2]
[313629777,1707497439296,-962.58,0.00024657,2]
[313629778,1707497439305,-962.58,0.00024657,2]
[313629779,1707497439314,-962.58,0.00024657,2]
[313629780,1707497439323,-962.58,0.00024657,2]
[313629781,1707497439333,-962.58,0.00024657,2]
[313629782,1707497439342,-962.58,0.00024657,2]
[313629783,1707497439351,-962.58,0.00024657,2]
[313629784,1707497439360,-962.58,0.00024657,2]
[313629785,1707497439369,-962.58,0.00024657,2]
[313629786,1707497439382,-962.58,0.00024657,2]
[313629787,1707497439396,-962.58,0.00024657,2]
[313629788,1707497439411,-962.58,0.00024657,2]
[313629789,1707497439424,-962.58,0.00024657,2]
[313629790,1707497439435,-962.58,0.00024657,2]
[313629791,1707497439448,-962.58,0.00024657,2]
[313629792,1707497439461,-962.58,0.00024657,2]
[313629793,1707497439475,-962.58,0.00024657,2]
[313629794,1707497439487,-962.58,0.00024657,2]
[313629795,1707497439501,-962.58,0.00024657,2]
[313629796,1707497439514,-962.6981853,0.00024657,2]
[313629797,1707497439525,-500.0,0.00024657,2]
[313629798,1707497439536,-500.0,0.00024657,2]
[313629799,1707497439547,-500.0,0.00024657,2]
[313629800,1707497439559,-935.52,0.00024657,2]
[313629801,1707497439570,-935.52,0.00024657,2]
[313629802,1707497439582,-935.52,0.00024657,2]
[313629803,1707497439593,-935.52,0.00024657,2]
[313629804,1707497439605,-500.0,0.00024657,2]
[313629805,1707497439618,-500.0,0.00024657,2]
[313629806,1707497439630,-500.0,0.00024657,2]
[313629807,1707497439643,-500.0,0.00024657,2]
[313629808,1707497439655,-500.0,0.00024657,2]
[313629809,1707497439667,-500.0,0.00024899,2]
[313629810,1707497439681,-500.0,0.00024899,2]
[313629811,1707497439694,-207.19376167,0.00024899,2]
[313629812,1707497439705,-500.0,0.00024899,2]
[313629813,1707497439717,-500.0,0.00024899,2]
[313629814,1707497439729,-500.0,0.00024899,2]
[313629815,1707497439741,-500.0,0.00024899,2]
[313629816,1707497439754,-500.0,0.00024899,2]
[313629817,1707497439767,-500.0,0.00024899,2]
[313629818,1707497439781,-569.28913365,0.00024899,2]
[313629819,1707497439792,-500.0,0.00024899,2]
[313629820,1707497439803,-500.0,0.00024899,2]
[313629821,1707497439815,-500.0,0.00024899,2]
[313629822,1707497439826,-500.0,0.00024899,2]
[313629823,1707497439837,-500.0,0.00024899,2]
[313629824,1707497439851,-500.0,0.00024899,2]
[313629825,1707497439864,-500.0,0.00024899,2]
[313629826,1707497439874,-500.0,0.00024899,2]
[313629827,1707497439884,-500.0,0.00024899,2]
[313629828,1707497439895,-500.0,0.00024899,2]
[313629829,1707497439907,-500.0,0.00024899,2]
[313629830,1707497439918,-500.0,0.00024899,2]
[313629831,1707497439930,-550.0,0.00024899,2]
[313629832,1707497439940,-500.0,0.00024899,2]
[313629833,1707497439951,-500.0,0.00024899,2]
[313629834,1707497439962,-500.0,0.00024899,2]
[313629835,1707497439974,-500.0,0.00024899,2]
[313629836,1707497439986,-500.0,0.00024899,2]
[313629837,1707497439997,-500.0,0.00024899,2]
[313629838,1707497440008,-500.0,0.00024899,2]
[313629839,1707497440018,-500.0,0.00024899,2]
[313629840,1707497440029,-500.0,0.00024899,2]
[313629841,1707497440039,-500.0,0.00024899,2]
[313629842,1707497440050,-500.0,0.00024899,2]
[313629843,1707497440061,-500.0,0.00024899,2]
[313629844,1707497440071,-500.0,0.00024899,2]
[313629845,1707497440082,-500.0,0.00024899,2]
[313629846,1707497440093,-500.0,0.00024899,2]
[313629847,1707497440103,-500.0,0.00024899,2]
[313629848,1707497440114,-500.0,0.00024899,2]
[313629849,1707497440125,-500.0,0.00024899,2]
[313629850,1707497440135,-500.0,0.00024899,2]
[313629851,1707497440146,-500.0,0.00024899,2]
[313629852,1707497440158,-500.0,0.00024899,2]
[313629853,1707497440169,-500.0,0.00024899,2]
[313629854,1707497440181,-500.0,0.00024899,2]
[313629855,1707497440192,-500.0,0.00024899,2]
[313629856,1707497440204,-500.0,0.00024899,2]
[313629857,1707497440216,-500.0,0.00024899,2]
[313629858,1707497440227,-500.0,0.00024899,2]
[313629859,1707497440240,-500.0,0.00024899,2]
[313629860,1707497440254,-500.0,0.00024899,2]
[313629861,1707497440266,-500.0,0.00024899,2]
[313629862,1707497440277,-500.0,0.00024899,2]
[313629863,1707497440287,-500.0,0.00024899,2]
[313629864,1707497440298,-422.75469765,0.00024899,2]
[313629865,1707497440308,-500.0,0.00024899,2]
[313629866,1707497440319,-553.85987132,0.00024899,2]
[313629867,1707497440329,-50692.61217299,0.000249,2]
[313629868,1707497440340,-500.0,0.00024999,2]
[313629869,1707497440351,-1219.9,0.00024999,2]
[313629870,1707497440361,-500.0,0.00024999,2]
[313629871,1707497440372,-935.52,0.00024999,2]
[313629872,1707497440382,-4739.90020037,0.00025,2]
[313629873,1707497440393,-7408.73547856,0.00025,2]
[313629874,1707497440404,-335.67869431,0.00025,2]
[313629878,1707497440505,-154.9690062,0.00025,2]
[313629880,1707497440538,-1500.0,0.00025,2]
[313629881,1707497440548,-1500.0,0.00025,2]
[313629882,1707497440558,-1500.0,0.00025,2]
[313629883,1707497440567,-1500.0,0.00025,2]
[313629884,1707497440576,-1500.0,0.00025,2]
[313629885,1707497440585,-1500.0,0.00025,2]
[313629886,1707497440594,-1500.0,0.00025,2]
[313629887,1707497440604,-1500.0,0.00025,2]
[313629888,1707497440613,-1140.74,0.00025,2]
[313629889,1707497440622,-1500.0,0.00025,2]
[313629890,1707497440632,-1500.0,0.00025,2]
[313629891,1707497440642,-1034.0,0.00025,2]
[313629892,1707497440652,-453.5907265,0.00025,5]
[313629893,1707497440661,-150.0,0.00025,2]
[313629894,1707497440671,-1964.18601947,0.00025203,2]
[313629895,1707497440680,-1000.0,0.00025461,3]
[313629896,1707497440690,-748.0485374,0.00025461,2]
[313629897,1707497440699,-290.31271607,0.00025461,2]
[313629898,1707497440708,-517.29376659,0.00025461,2]
[313629899,1707497440718,-164.91081621,0.00025461,2]
[313629900,1707497440726,-500.0,0.00025801,2]
[313629901,1707497440735,-1219.9,0.00025801,2]
[313629902,1707497440745,-935.52,0.00025801,2]
[313629903,1707497440756,-5000.0,0.00025802,2]
[313629904,1707497440766,-5000.0,0.00025802,2]
[313629905,1707497440776,-5000.0,0.00025802,2]
[313629906,1707497440785,-458.13259191,0.00025896,2]
[313629907,1707497440795,-500.0,0.00025897,2]
[313629908,1707497440805,-500.0,0.00025897,2]
[313629909,1707497440815,-1219.9,0.00025897,2]
[313629910,1707497440825,-1219.9,0.00025897,2]
[313629911,1707497440835,-935.52,0.00025897,2]
[313629912,1707497440844,-935.52,0.00025897,2]
[313629913,1707497440854,-280.0,0.00025978,7]
[313629914,1707497440863,-280.57621177,0.00026,2]
[313629915,1707497440872,-3504.04593684,0.00026,3]
[313629916,1707497440882,-150.0,0.00026143,2]
[313629917,1707497440892,-151.0,0.00026296,2]
[313629918,1707497440903,-487.59242628,0.00026574,2]
[313629919,1707497440912,-691.68081338,0.000267,2]
[313629920,1707497440923,-500.0,0.00026765,2]
[313629921,1707497440933,-1219.9,0.00026765,2]
[313629922,1707497440943,-935.52,0.00026765,2]
[313629923,1707497440952,-151.0,0.0002679,2]
[313629924,1707497440961,-296.56577586,0.00026799,2]
[313629925,1707497440971,-230.77250697,0.00026799,2]
[313629926,1707497440979,-1219.9,0.00026799,2]
[313629927,1707497440988,-1219.9,0.00026799,2]
[313629928,1707497440998,-1219.9,0.00026799,2]
[313629929,1707497441008,-1219.9,0.00026799,2]
[313629930,1707497441017,-935.52,0.00026799,2]
[313629931,1707497441027,-935.52,0.00026799,2]
[313629932,1707497441036,-935.52,0.00026799,2]
[313629933,1707497441046,-935.52,0.00026799,2]
[313629934,1707497441056,-128957.49449985,0.000268,2]
[313629935,1707497441065,-355.0,0.000268,2]
[313629936,1707497441074,-11167.32082822,0.000268,2]
[313629937,1707497441084,-1219.9,0.00026999,2]
[313629938,1707497441093,-1219.9,0.00026999,2]
[313629939,1707497441102,-935.52,0.00026999,2]
[313629940,1707497441111,-935.52,0.00026999,2]
[313629941,1707497441120,-502.63645492,0.00027,3]
[313629942,1707497441129,-155.09615962,0.00027,2]
[313629943,1707497441139,-30443.77587275,0.00027,2]
[313629944,1707497441148,-750.0,0.00027,2]
[313629945,1707497441159,-74048.95978053,0.00027,2]
[313629946,1707497441168,-457.90001937,0.00027,2]
[313629947,1707497441178,-5499.99999503,0.00027,2]
[313629948,1707497441187,-154.93802479,0.00027,2]
[313629949,1707497441196,-766.29918568,0.00027,2]
[313629950,1707497441205,-313.30759974,0.00027,6]
[313629951,1707497441215,-1219.9,0.0002708,2]
[313629952,1707497441224,-935.52,0.0002708,2]
[313629953,1707497441234,-235.0,0.000272,3]
[313629954,1707497441244,-151.0,0.00027285,2]
[313629955,1707497441254,-429.94942356,0.00027397,2]
[313629956,1707497441263,-155.0,0.00027397,2]
[313629957,1707497441273,-500.0,0.00027397,15]
[313629958,1707497441282,-500.0,0.00027397,15]
[313629959,1707497441290,-500.0,0.00027397,15]
[313629960,1707497441300,-500.0,0.00027397,15]
[313629961,1707497441309,-500.0,0.00027397,15]
[313629962,1707497441318,-500.0,0.00027397,15]
[313629963,1707497441328,-500.0,0.00027397,15]
[313629964,1707497441337,-500.0,0.00027397,15]
[313629965,1707497441348,-500.0,0.00027397,15]
[313629966,1707497441358,-500.0,0.00027397,15]
[313629967,1707497441367,-500.0,0.00027397,15]
[313629968,1707497441376,-500.0,0.00027397,15]
[313629969,1707497441385,-500.0,0.00027397,15]
[313629970,1707497441394,-500.0,0.00027397,15]
[313629971,1707497441403,-500.0,0.00027397,15]
[313629972,1707497441412,-168.93217698,0.00027397,15]
[313629973,1707497441421,-281.13428486,0.00027397,2]
[313629974,1707497441430,-500.0,0.00027397,2]
[313629975,1707497441440,-500.0,0.00027397,2]
[313629976,1707497441450,-500.0,0.00027397,2]
[313629977,1707497441459,-500.0,0.00027397,2]
[313629978,1707497441468,-500.0,0.00027397,2]
[313629979,1707497441477,-500.0,0.00027397,2]
[313629980,1707497441486,-500.0,0.00027397,2]
[313629981,1707497441495,-500.0,0.00027397,2]
[313629982,1707497441506,-500.0,0.00027397,2]
[313629983,1707497441515,-500.0,0.00027397,2]
[313629985,1707497441524,-500.0,0.00027397,2]
[313629986,1707497441534,-500.0,0.00027397,2]
[313629987,1707497441543,-371.9948155,0.00027397,2]
[313629988,1707497441552,-45205.3937059,0.00027397,2]
[313629989,1707497441562,-2000.0,0.000275,2]
[313629990,1707497441571,-2000.0,0.0002751,2]
[313629991,1707497441581,-2000.0,0.0002752,2]
[313629992,1707497441590,-2000.0,0.0002753,2]
[313629993,1707497441599,-514.41437902,0.00027534,2]
[313629994,1707497441608,-2000.0,0.0002754,2]
[313629995,1707497441617,-1219.9,0.00027549,2]
[313629996,1707497441626,-935.52,0.00027549,2]
[313629998,1707497441635,-8679.35978985,0.0002755,4]
[313629999,1707497441644,-2000.0,0.0002755,2]
[313630000,1707497441653,-2000.0,0.0002756,2]
[313630001,1707497441666,-2000.0,0.0002757,2]
[313630002,1707497441675,-5000.0,0.00027573,2]
[313630003,1707497441684,-2000.0,0.0002758,2]
[313630004,1707497441694,-2000.0,0.0002759,2]
[313630005,1707497441702,-2000.0,0.000276,2]
[313630006,1707497441712,-2000.0,0.0002761,2]
[313630007,1707497441722,-2000.0,0.0002762,2]
[313630008,1707497441731,-2000.0,0.0002763,2]
[313630009,1707497441739,-2000.0,0.0002764,2]
[313630010,1707497441749,-2000.0,0.0002765,2]
[313630011,1707497441761,-2000.0,0.0002766,2]
[313630012,1707497441771,-1219.9,0.00027669,2]
[313630013,1707497441780,-935.52,0.00027669,2]
[313630014,1707497441789,-3586.032589,0.0002767,2]
[313630015,1707497441798,-151.0,0.0002778,2]
[313630016,1707497441807,-155.76626702,0.00027787,2]
[313630017,1707497441816,-195.8155419,0.00027796,2]
[313630018,1707497441826,-313534.56270936,0.000278,2]
[313630019,1707497441835,-1000.0,0.0002782,7]
[313630020,1707497441846,-16408.94741364,0.000279,2]
[313630021,1707497441923,-408.21127466,0.00021097,2]
[313630022,1707497441932,-4732.94456613,0.000279,2]
[313630023,1707497441942,-1219.9,0.00027998,2]
[313630024,1707497441951,-935.52,0.00027998,2]
[313630025,1707497441960,-160.0,0.00027999,10]
[313630026,1707497441969,-383.94308166,0.00027999,2]
[313630027,1707497441978,-476.75147368,0.00027999,2]
[313630028,1707497441988,-500.0,0.00027999,2]
[313630029,1707497441998,-645.72101805,0.00027999,2]
[313630030,1707497442009,-500.0,0.00027999,2]
[313630031,1707497442018,-500.0,0.00027999,2]
[313630032,1707497442028,-500.0,0.00027999,2]
[313630033,1707497442039,-500.0,0.00027999,2]
[313630034,1707497442048,-500.0,0.00027999,2]
[313630035,1707497442057,-500.0,0.00027999,2]
[313630036,1707497442067,-500.0,0.00027999,2]
[313630037,1707497442076,-500.0,0.00027999,2]
[313630038,1707497442086,-167.94873942,0.00027999,2]
[313630039,1707497442099,-332.05126058,0.00027999,2]
[313630040,1707497442108,-500.0,0.00027999,2]
[313630041,1707497442117,-504.33035574,0.00027999,2]
[313630042,1707497442126,-500.0,0.00027999,2]
[313630043,1707497442136,-262.50283496,0.00027999,2]
[313630044,1707497442148,-300.0,0.00027999,2]
[313630045,1707497442159,-500.0,0.00027999,2]
[313630046,1707497442169,-500.0,0.00027999,2]
[313630047,1707497442178,-500.0,0.00027999,2]
[313630048,1707497442188,-500.0,0.00027999,2]
[313630049,1707497442197,-500.0,0.00027999,2]
[313630050,1707497442207,-495.31225448,0.00027999,2]
[313630051,1707497442219,-4.68774552,0.00027999,2]
[313630052,1707497442230,-500.0,0.00027999,2]
[313630053,1707497442240,-557.33112709,0.00027999,2]
[313630054,1707497442250,-500.0,0.00027999,2]
[313630055,1707497442261,-500.0,0.00027999,2]
[313630056,1707497442271,-500.0,0.00027999,2]
[313630057,1707497442280,-196.34374833,0.00027999,2]
[313630058,1707497442289,-500.0,0.00027999,2]
[313630059,1707497442299,-500.0,0.00027999,2]
[313630060,1707497442308,-500.0,0.00027999,2]
[313630061,1707497442318,-500.0,0.00027999,2]
[313630062,1707497442327,-365.38059145,0.00027999,2]
[313630063,1707497442340,-134.61940855,0.00027999,2]
[313630064,1707497442349,-500.0,0.00027999,2]
[313630065,1707497442359,-500.0,0.00027999,2]
[313630066,1707497442368,-500.0,0.00027999,2]
[313630067,1707497442377,-550.0,0.00027999,2]
[313630068,1707497442386,-386.0829057,0.00027999,2]
[313630069,1707497442396,-500.0,0.00027999,2]
[313630070,1707497442405,-500.0,0.00027999,2]
[313630071,1707497442492,-500.0,0.00027999,2]
[313630072,1707497442506,-500.0,0.00027999,2]
[313630073,1707497442518,-496.26037237,0.00027999,2]
[313630074,1707497442533,-3.73962763,0.00027999,2]
[313630075,1707497442545,-500.0,0.00027999,2]
[313630076,1707497442556,-500.0,0.00027999,2]
[313630077,1707497442567,-500.0,0.00027999,2]
[313630078,1707497442578,-500.0,0.00027999,2]
[313630079,1707497442588,-500.0,0.00027999,2]
[313630080,1707497442598,-500.0,0.00027999,2]
[313630081,1707497442609,-500.0,0.00027999,2]
[313630082,1707497442619,-500.0,0.00027999,2]
[313630083,1707497442629,-500.0,0.00027999,2]
[313630084,1707497442639,-299.82090785,0.00027999,2]
[313630085,1707497442653,-200.17909215,0.00027999,2]
[313630086,1707497442663,-367.08989032,0.00027999,2]
[313630087,1707497442674,-500.0,0.00027999,2]
[313630088,1707497442685,-500.0,0.00027999,2]
[313630089,1707497442696,-500.0,0.00027999,2]
[313630091,1707497442707,-451.0388735,0.00027999,2]
[313630093,1707497442718,-1219.9,0.00027999,2]
[313630095,1707497442728,-1219.9,0.00027999,2]
[313630097,1707497442738,-340.07937267,0.00027999,2]
[313630149,1707497446177,-500.0,0.00024899,2]
[313630150,1707497446187,-600.0,0.00024899,2]
[313630151,1707497446197,-500.0,0.00024899,2]
[313630152,1707497446206,-500.0,0.00024899,2]
[313630153,1707497446216,-500.0,0.00024899,2]
[313630154,1707497446226,-392.01075626,0.00024899,2]
[313630155,1707497446250,-107.98924374,0.00024899,2]
[313630156,1707497446261,-500.0,0.00024899,2]
[313630157,1707497446271,-879.82062733,0.00027999,2]
[313630158,1707497446280,-1219.9,0.00027999,2]
[313630159,1707497446289,-1220.11577341,0.00027999,2]
[313630160,1707497446298,-935.52,0.00027999,2]
[313630161,1707497446308,-935.52,0.00027999,2]
[313630162,1707497446317,-935.52,0.00027999,2]
[313630163,1707497446326,-935.52,0.00027999,2]
[313630164,1707497446336,-935.58404794,0.00027999,2]
[313630165,1707497446345,-1716.51144437,0.00028,2]
[313630166,1707497446354,-1897.21350752,0.00028,2]
[313630167,1707497446363,-201.5425736,0.00028,2]
[313630168,1707497446372,-103448.06998461,0.00028,2]
[313630169,1707497446381,-166.85760888,0.00028,7]
[313630170,1707497446390,-294735.32525817,0.00028,20]
[313630171,1707497446399,-155.4176192,0.00028,2]
[313630172,1707497446407,-743.51787821,0.00028,2]
[313630173,1707497446416,-12728.0,0.00028,2]
[313630174,1707497446425,-51950.47625277,0.00028,2]
[313630175,1707497446434,-270.29660166,0.00028,2]
[313630176,1707497446444,-390.09846827,0.00028,2]
[313630177,1707497446453,-2926.24372674,0.00028,2]
[313630178,1707497446462,-151.71813368,0.00028,2]
[313630179,1707497446471,-48887.24504501,0.00028,2]
[313630180,1707497446484,-12063.0000078,0.00028,2]
[313630184,1707497508771,-262.93036703,0.00025,6]
[313630186,1707497532448,-154.0,0.00023616,4]
[313630192,1707497588240,-310.0,0.000233,2]
[313630197,1707497638071,200.0,0.00024464,7]
[313630221,1707497906677,-154.0,0.00023291,4]
[313630255,1707498348102,-154.92253873,0.00023279,4]
[313630256,1707498348122,-2212.60402565,0.00023291,2]
[313630257,1707498348143,-2091.43243292,0.00023291,2]
[313630258,1707498348164,-300.0,0.00023291,2]
[313630259,1707498348186,-1832.17488523,0.00023291,2]
[313630260,1707498348210,-270.88870874,0.000233,2]
[313630261,1707498348232,-203.09886233,0.000233,2]
[313630262,1707498348253,-200.0,0.00024454,7]
[313630263,1707498348274,-1109.22544083,0.00025,2]
[313630264,1707498348295,-154.92253873,0.00025,2]
[313630265,1707498348314,-335.67869431,0.00025577,2]
[313630266,1707498348334,-4412.33424051,0.00025578,2]
[313630267,1707498348356,-581.15376785,0.00025579,2]
[313630268,1707498348378,-164.91081621,0.00025579,2]
[313630269,1707498348399,-280.57621177,0.00026,2]
[313630270,1707498348420,-8679.35978985,0.000266,4]
[313630271,1707498348441,-280.0,0.000269,15]
[313630272,1707498348567,-154.92253873,0.00027,2]